[Event "*** Titled Tuesday Blitz"]
[Site "Chess.com"]
[Date "2018.06.05"]
[Round "1"]
[White "Godzillator"]
[Black "robbykevlishvili"]
[Result "1-0"]
[WhiteElo "2232"]
[BlackElo "2505"]
[TimeControl "180+2"]
[EndTime "13:07:01 PDT"]
[Termination "Godzillator won by checkmate"]

1. d4 {[%clk 0:03:00.1]} 1... d5 {[%clk 0:02:57.6]} 2. c4 {[%clk 0:03:00.9]}
2... e6 {[%clk 0:02:56.7]} 3. cxd5 {[%clk 0:03:01.9]} 3... exd5 {[%clk
0:02:56.8]} 4. Nc3 {[%clk 0:03:02.9]} 4... c6 {[%clk 0:02:56.7]} 5. Qc2 {[%clk
0:03:03.1]} 5... Nd7 {[%clk 0:02:53.4]} 6. Nf3 {[%clk 0:03:03.2]} 6... Ngf6
{[%clk 0:02:51.7]} 7. Bg5 {[%clk 0:03:03.9]} 7... Be7 {[%clk 0:02:52.6]} 8. e3
{[%clk 0:03:05.2]} 8... O-O {[%clk 0:02:51.5]} 9. Bd3 {[%clk 0:03:06.1]} 9...
Re8 {[%clk 0:02:51.1]} 10. O-O {[%clk 0:03:07.2]} 10... Nf8 {[%clk 0:02:51.7]}
11. h3 {[%clk 0:03:08.3]} 11... a5 {[%clk 0:02:50.2]} 12. Rab1 {[%clk 0:03:00]}
12... g6 {[%clk 0:02:47.1]} 13. Bf4 {[%clk 0:02:59.5]} 13... Ne6 {[%clk
0:02:48]} 14. Be5 {[%clk 0:03:00.3]} 14... Ng7 {[%clk 0:02:48.7]} 15. a3 {[%clk
0:03:01.5]} 15... Bf5 {[%clk 0:02:49.4]} 16. b4 {[%clk 0:03:02.3]} 16... axb4
{[%clk 0:02:49.5]} 17. axb4 {[%clk 0:03:02.9]} 17... Bxd3 {[%clk 0:02:49]} 18.
Qxd3 {[%clk 0:03:03.8]} 18... Ra3 {[%clk 0:02:44.5]} 19. Qc2 {[%clk 0:02:54.9]}
19... Qd7 {[%clk 0:02:35.6]} 20. Rfc1 {[%clk 0:02:46.4]} 20... Rea8 {[%clk
0:02:34.7]} 21. b5 {[%clk 0:02:46.4]} 21... Ne6 {[%clk 0:02:23]} 22. bxc6 {[%clk
0:02:46]} 22... bxc6 {[%clk 0:02:24.9]} 23. Rb3 {[%clk 0:02:36.9]} 23... Rxb3
{[%clk 0:02:21.2]} 24. Qxb3 {[%clk 0:02:37.6]} 24... Ne8 {[%clk 0:02:21.1]} 25.
Na4 {[%clk 0:02:34.6]} 25... Bd8 {[%clk 0:02:13.2]} 26. Nb6 {[%clk 0:02:30.5]}
26... Qb7 {[%clk 0:01:59.9]} 27. Rb1 {[%clk 0:02:31.4]} 27... N8c7 {[%clk
0:01:48.4]} 28. Nd7 {[%clk 0:02:28.4]} 28... Nb5 {[%clk 0:01:44.6]} 29. Nf6+
{[%clk 0:02:20.4]} 29... Bxf6 {[%clk 0:01:45]} 30. Bxf6 {[%clk 0:02:21.5]} 30...
Qa6 {[%clk 0:01:24.4]} 31. Ne5 {[%clk 0:02:19.1]} 31... Nd6 {[%clk 0:01:21.8]}
32. Qb6 {[%clk 0:02:10.7]} 32... Qxb6 {[%clk 0:01:16]} 33. Rxb6 {[%clk
0:02:10.6]} 33... Ne4 {[%clk 0:01:17.7]} 34. Bh4 {[%clk 0:02:08.8]} 34... g5
{[%clk 0:01:18.2]} 35. Bg3 {[%clk 0:02:09.5]} 35... c5 {[%clk 0:01:05.8]} 36.
dxc5 {[%clk 0:02:09.6]} 36... N6xc5 {[%clk 0:01:06.1]} 37. Nc6 {[%clk
0:02:05.5]} 37... Ra1+ {[%clk 0:00:59.2]} 38. Kh2 {[%clk 0:02:05.8]} 38... Nd2
{[%clk 0:01:00.8]} 39. Rb8+ {[%clk 0:02:00.2]} 39... Kg7 {[%clk 0:00:57.6]} 40.
Be5+ {[%clk 0:02:00.8]} 40... f6 {[%clk 0:00:47]} 41. Bxa1 {[%clk 0:02:01.1]}
41... Nce4 {[%clk 0:00:48.9]} 42. f3 {[%clk 0:01:56.6]} 42... Nf2 {[%clk
0:00:44.6]} 43. Rb7+ {[%clk 0:01:54.2]} 43... Kg6 {[%clk 0:00:44.9]} 44. Ne7+
{[%clk 0:01:53.6]} 44... Kh6 {[%clk 0:00:45.9]} 45. Nf5+ {[%clk 0:01:54.1]}
45... Kg6 {[%clk 0:00:46.9]} 46. g4 {[%clk 0:01:53.6]} 46... Nxf3+ {[%clk
0:00:45.9]} 47. Kg3 {[%clk 0:01:54.7]} 47... Ne4+ {[%clk 0:00:44.7]} 48. Kxf3
{[%clk 0:01:54.4]} 48... h5 {[%clk 0:00:46.6]} 49. Rg7# {[%clk 0:01:53.4]} 1-0

[Event "*** Titled Tuesday Blitz"]
[Site "Chess.com"]
[Date "2018.06.05"]
[Round "1"]
[White "littleplotkin"]
[Black "TrimitziosP7"]
[Result "0-1"]
[WhiteElo "2394"]
[BlackElo "2758"]
[TimeControl "180+2"]
[EndTime "13:07:07 PDT"]
[Termination "TrimitziosP7 won by checkmate"]

1. Nf3 {[%clk 0:03:00.4]} 1... d5 {[%clk 0:03:00.7]} 2. g3 {[%clk 0:03:01.7]}
2... c6 {[%clk 0:03:01.6]} 3. Bg2 {[%clk 0:03:03.2]} 3... Nf6 {[%clk 0:03:02.9]}
4. O-O {[%clk 0:03:04.6]} 4... Bf5 {[%clk 0:03:04.1]} 5. d3 {[%clk 0:03:06]}
5... e6 {[%clk 0:03:05.4]} 6. Nbd2 {[%clk 0:03:04.6]} 6... h6 {[%clk 0:03:06.7]}
7. Nh4 {[%clk 0:02:58.1]} 7... Bh7 {[%clk 0:03:05.7]} 8. e4 {[%clk 0:02:59.6]}
8... Be7 {[%clk 0:03:06.3]} 9. Qe2 {[%clk 0:02:55.6]} 9... O-O {[%clk
0:03:06.9]} 10. f4 {[%clk 0:02:49.4]} 10... Nfd7 {[%clk 0:03:05.5]} 11. Nhf3
{[%clk 0:02:49.6]} 11... Nc5 {[%clk 0:03:03.9]} 12. e5 {[%clk 0:02:48.8]} 12...
Nbd7 {[%clk 0:03:04.7]} 13. g4 {[%clk 0:02:46.9]} 13... Re8 {[%clk 0:03:04.4]}
14. g5 {[%clk 0:02:43.9]} 14... hxg5 {[%clk 0:03:01.2]} 15. fxg5 {[%clk
0:02:40.7]} 15... Bf5 {[%clk 0:03:00.8]} 16. d4 {[%clk 0:02:38.2]} 16... Na6
{[%clk 0:02:58.7]} 17. c3 {[%clk 0:02:31]} 17... Nf8 {[%clk 0:02:58.6]} 18. h4
{[%clk 0:02:24.8]} 18... g6 {[%clk 0:02:57.7]} 19. Nh2 {[%clk 0:02:11.7]} 19...
c5 {[%clk 0:02:56]} 20. Ng4 {[%clk 0:02:10.9]} 20... cxd4 {[%clk 0:02:57]} 21.
cxd4 {[%clk 0:02:06.2]} 21... Qb6 {[%clk 0:02:57.7]} 22. Nb3 {[%clk 0:02:07.3]}
22... Rac8 {[%clk 0:02:55.9]} 23. h5 {[%clk 0:01:56.3]} 23... Rc2 {[%clk
0:02:53.3]} 24. Qf3 {[%clk 0:01:56.8]} 24... Nh7 {[%clk 0:02:50.2]} 25. Nf6+
{[%clk 0:01:09.3]} 25... Bxf6 {[%clk 0:02:49.8]} 26. gxf6 {[%clk 0:01:11.2]}
26... Be4 {[%clk 0:02:49.1]} 27. Qxe4 {[%clk 0:01:00.2]} 27... dxe4 {[%clk
0:02:51]} 28. Bxe4 {[%clk 0:01:02.1]} 28... Rxc1 {[%clk 0:02:42.3]} 29. Raxc1
{[%clk 0:00:48.2]} 29... Ng5 {[%clk 0:02:40.5]} 30. Bd3 {[%clk 0:00:43.4]} 30...
Rd8 {[%clk 0:02:39.9]} 31. hxg6 {[%clk 0:00:43.2]} 31... fxg6 {[%clk 0:02:35.8]}
32. Bxg6 {[%clk 0:00:43.3]} 32... Nc7 {[%clk 0:02:32.7]} 33. Kg2 {[%clk
0:00:38.1]} 33... Nb5 {[%clk 0:02:32.8]} 34. Nc5 {[%clk 0:00:14.3]} 34... Nxd4
{[%clk 0:02:33.5]} 35. Nd7 {[%clk 0:00:09.7]} 35... Rxd7 {[%clk 0:02:29.5]} 36.
Rc8+ {[%clk 0:00:10.8]} 36... Rd8 {[%clk 0:02:30.2]} 37. Rfc1 {[%clk 0:00:12.7]}
37... Nc6 {[%clk 0:02:30.3]} 38. Rxd8+ {[%clk 0:00:12.3]} 38... Qxd8 {[%clk
0:02:31.8]} 39. Kg3 {[%clk 0:00:14.2]} 39... Qd4 {[%clk 0:02:31.4]} 40. f7+
{[%clk 0:00:13.6]} 40... Nxf7 {[%clk 0:02:31.9]} 41. Rf1 {[%clk 0:00:13.9]}
41... Nfxe5 {[%clk 0:02:32.6]} 42. Bb1 {[%clk 0:00:13.7]} 42... Nc4 {[%clk
0:02:31.5]} 43. b3 {[%clk 0:00:13.8]} 43... Nd2 {[%clk 0:02:32.4]} 44. Re1
{[%clk 0:00:14]} 44... Nxb1 {[%clk 0:02:31.5]} 45. Rxb1 {[%clk 0:00:15.9]} 45...
Qd3+ {[%clk 0:02:32.7]} 46. Kf4 {[%clk 0:00:16.8]} 46... Qxb1 {[%clk 0:02:34.4]}
47. a4 {[%clk 0:00:18.4]} 47... Qf5+ {[%clk 0:02:35.7]} 48. Ke3 {[%clk
0:00:19.5]} 48... Qe5+ {[%clk 0:02:36.8]} 49. Kd3 {[%clk 0:00:20.5]} 49... Qd4+
{[%clk 0:02:38.2]} 50. Ke2 {[%clk 0:00:21.1]} 50... Qc3 {[%clk 0:02:38.5]} 51.
b4 {[%clk 0:00:21.6]} 51... Nxb4 {[%clk 0:02:39.2]} 52. a5 {[%clk 0:00:21.8]}
52... Nc6 {[%clk 0:02:40.5]} 53. a6 {[%clk 0:00:22.2]} 53... bxa6 {[%clk
0:02:42.4]} 54. Kf2 {[%clk 0:00:22.6]} 54... a5 {[%clk 0:02:44.3]} 55. Ke2
{[%clk 0:00:24.5]} 55... a4 {[%clk 0:02:46.2]} 56. Kf2 {[%clk 0:00:26.4]} 56...
a3 {[%clk 0:02:48.1]} 57. Ke2 {[%clk 0:00:28.3]} 57... a2 {[%clk 0:02:50]} 58.
Kf2 {[%clk 0:00:30.2]} 58... a1=Q {[%clk 0:02:51.7]} 59. Ke2 {[%clk 0:00:32.1]}
59... Qab2+ {[%clk 0:02:53.2]} 60. Kd1 {[%clk 0:00:33]} 60... Qcc1# {[%clk
0:02:55.1]} 0-1

[Event "*** Titled Tuesday Blitz"]
[Site "Chess.com"]
[Date "2018.06.05"]
[Round "1"]
[White "GMCanty"]
[Black "Divertissement"]
[Result "0-1"]
[WhiteElo "2213"]
[BlackElo "2532"]
[TimeControl "180+2"]
[EndTime "13:07:14 PDT"]
[Termination "Divertissement won by resignation"]

1. e4 {[%clk 0:02:56.7]} 1... c5 {[%clk 0:03:01.4]} 2. c3 {[%clk 0:02:55.4]}
2... Nf6 {[%clk 0:03:02.1]} 3. e5 {[%clk 0:02:55.3]} 3... Nd5 {[%clk 0:03:03.6]}
4. Nf3 {[%clk 0:02:56]} 4... e6 {[%clk 0:03:04.9]} 5. d4 {[%clk 0:02:56.8]} 5...
cxd4 {[%clk 0:03:06.8]} 6. cxd4 {[%clk 0:02:58.1]} 6... d6 {[%clk 0:03:08.1]} 7.
Nc3 {[%clk 0:02:57.5]} 7... Nxc3 {[%clk 0:03:07.9]} 8. bxc3 {[%clk 0:02:43.9]}
8... Be7 {[%clk 0:03:09.8]} 9. exd6 {[%clk 0:02:42.1]} 9... Bxd6 {[%clk
0:03:10.8]} 10. Bd3 {[%clk 0:02:43.7]} 10... O-O {[%clk 0:03:10.8]} 11. O-O
{[%clk 0:02:43.7]} 11... Nd7 {[%clk 0:03:10.4]} 12. Qe2 {[%clk 0:02:43.4]} 12...
Nf6 {[%clk 0:03:08]} 13. Bg5 {[%clk 0:02:42.3]} 13... Be7 {[%clk 0:03:09.2]} 14.
Rab1 {[%clk 0:02:41.2]} 14... Rb8 {[%clk 0:03:08]} 15. Rfd1 {[%clk 0:02:33.1]}
15... b6 {[%clk 0:03:06.2]} 16. Ne5 {[%clk 0:02:30.3]} 16... Bb7 {[%clk
0:03:06.9]} 17. c4 {[%clk 0:02:30.9]} 17... h6 {[%clk 0:03:00.1]} 18. Bh4 {[%clk
0:02:29.9]} 18... Nd7 {[%clk 0:02:57.7]} 19. Bg3 {[%clk 0:02:16.7]} 19... Nxe5
{[%clk 0:02:55.8]} 20. Bxe5 {[%clk 0:02:18.1]} 20... Bd6 {[%clk 0:02:56.9]} 21.
Rb3 {[%clk 0:01:52.8]} 21... Bxe5 {[%clk 0:02:57.2]} 22. dxe5 {[%clk 0:01:54.2]}
22... Qe7 {[%clk 0:02:57.9]} 23. Bb1 {[%clk 0:01:53.4]} 23... Rfd8 {[%clk
0:02:58.2]} 24. Re1 {[%clk 0:01:54.4]} 24... Rd4 {[%clk 0:02:55.2]} 25. Rg3
{[%clk 0:01:54.9]} 25... Rbd8 {[%clk 0:02:54.5]} 26. h3 {[%clk 0:01:54.1]} 26...
Rd2 {[%clk 0:02:43.4]} 27. Qg4 {[%clk 0:01:53.1]} 27... g5 {[%clk 0:02:39.5]}
28. Qh5 {[%clk 0:01:48.2]} 28... Kg7 {[%clk 0:02:33.8]} 29. h4 {[%clk
0:01:47.9]} 29... Qc5 {[%clk 0:02:14.1]} 30. Rf1 {[%clk 0:01:43.7]} 30... Qxe5
{[%clk 0:01:48.4]} 31. hxg5 {[%clk 0:01:40.6]} 31... Kf8 {[%clk 0:01:46.3]} 32.
Qxh6+ {[%clk 0:01:24.8]} 32... Ke7 {[%clk 0:01:47.5]} 33. Re3 {[%clk 0:01:25.6]}
33... Qxe3 {[%clk 0:01:38.9]} 34. Qf6+ {[%clk 0:01:22.3]} 34... Kd7 {[%clk
0:01:30.7]} 35. Qxf7+ {[%clk 0:00:54.6]} 35... Kc8 {[%clk 0:01:30.6]} 36. Qxb7+
{[%clk 0:00:41.4]} 36... Kxb7 {[%clk 0:01:32.5]} 37. fxe3 {[%clk 0:00:42.6]}
37... Rd1 {[%clk 0:01:31.2]} 38. Be4+ {[%clk 0:00:44.4]} 38... Kc7 {[%clk
0:01:31.9]} 39. g6 {[%clk 0:00:45.8]} 39... Rxf1+ {[%clk 0:01:30.7]} 40. Kxf1
{[%clk 0:00:47.2]} 40... Kd6 {[%clk 0:01:32.6]} 41. Ke2 {[%clk 0:00:44.7]} 41...
Ke5 {[%clk 0:01:33.9]} 42. Bc2 {[%clk 0:00:45.2]} 42... Kf6 {[%clk 0:01:34.2]}
43. Kf3 {[%clk 0:00:45.5]} 43... Rd2 {[%clk 0:01:35.2]} 44. Be4 {[%clk
0:00:43.7]} 44... Rxa2 {[%clk 0:01:35.9]} 45. g4 {[%clk 0:00:45.4]} 45... a5
{[%clk 0:01:36.7]} 46. Kf4 {[%clk 0:00:46.9]} 46... a4 {[%clk 0:01:37.7]} 47.
g5+ {[%clk 0:00:48.4]} 47... Kg7 {[%clk 0:01:39]} 48. Ke5 {[%clk 0:00:48.8]}
48... a3 {[%clk 0:01:40.5]} 49. Kxe6 {[%clk 0:00:49.6]} 49... Re2 {[%clk
0:01:42]} 50. Bd5 {[%clk 0:00:49.6]} 50... a2 {[%clk 0:01:42.4]} 0-1

[Event "*** Titled Tuesday Blitz"]
[Site "Chess.com"]
[Date "2018.06.05"]
[Round "1"]
[White "korason34"]
[Black "Blitzking4444"]
[Result "1-0"]
[WhiteElo "2458"]
[BlackElo "2061"]
[TimeControl "180+2"]
[EndTime "13:07:14 PDT"]
[Termination "korason34 won on time"]

1. d4 {[%clk 0:03:01.2]} 1... Nf6 {[%clk 0:03:00.6]} 2. c4 {[%clk 0:03:02.5]}
2... e6 {[%clk 0:03:01.5]} 3. Nc3 {[%clk 0:03:03.3]} 3... Bb4 {[%clk 0:03:02.1]}
4. f3 {[%clk 0:03:04.7]} 4... c5 {[%clk 0:02:52.8]} 5. d5 {[%clk 0:03:05.1]}
5... b5 {[%clk 0:02:51.3]} 6. e4 {[%clk 0:03:02.8]} 6... exd5 {[%clk 0:02:25.9]}
7. cxd5 {[%clk 0:03:00.6]} 7... a6 {[%clk 0:02:22.3]} 8. Be3 {[%clk 0:02:55.1]}
8... d6 {[%clk 0:02:21.9]} 9. Bd3 {[%clk 0:02:48.9]} 9... Nbd7 {[%clk 0:02:19]}
10. Ne2 {[%clk 0:02:46.9]} 10... Ne5 {[%clk 0:02:10.9]} 11. O-O {[%clk
0:02:41.3]} 11... O-O {[%clk 0:01:47.1]} 12. Bc2 {[%clk 0:02:38.5]} 12... Nc4
{[%clk 0:01:25.9]} 13. Bc1 {[%clk 0:02:38.3]} 13... Ba5 {[%clk 0:01:13.2]} 14.
b3 {[%clk 0:02:35.5]} 14... Ne5 {[%clk 0:01:05.2]} 15. f4 {[%clk 0:02:33.6]}
15... Neg4 {[%clk 0:00:55.6]} 16. h3 {[%clk 0:02:33.5]} 16... Bb6 {[%clk
0:00:51.8]} 17. Qe1 {[%clk 0:02:02.8]} 17... c4+ {[%clk 0:00:45]} 18. Kh1 {[%clk
0:02:02.2]} 18... Ne3 {[%clk 0:00:38]} 19. Bxe3 {[%clk 0:02:02.8]} 19... Bxe3
{[%clk 0:00:39]} 20. bxc4 {[%clk 0:02:03.3]} 20... b4 {[%clk 0:00:22.4]} 21. Nd1
{[%clk 0:01:47.6]} 21... Bc5 {[%clk 0:00:21.1]} 22. e5 {[%clk 0:01:45.8]} 22...
Nd7 {[%clk 0:00:13.3]} 23. Nf2 {[%clk 0:01:30]} 23... dxe5 {[%clk 0:00:13.5]}
24. Ne4 {[%clk 0:01:20.8]} 24... Ba7 {[%clk 0:00:06.3]} 25. f5 {[%clk
0:00:57.7]} 25... Nc5 {[%clk 0:00:06]} 26. f6 {[%clk 0:00:53.4]} 26... g6 {[%clk
0:00:04.3]} 27. Qh4 {[%clk 0:00:52]} 27... Nxe4 {[%clk 0:00:04.8]} 28. Bxe4
{[%clk 0:00:51.7]} 1-0

[Event "*** Titled Tuesday Blitz"]
[Site "Chess.com"]
[Date "2018.06.05"]
[Round "1"]
[White "Grandelicious"]
[Black "Jooonaaas1996"]
[Result "1-0"]
[WhiteElo "2594"]
[BlackElo "2275"]
[TimeControl "180+2"]
[EndTime "13:07:18 PDT"]
[Termination "Grandelicious won by resignation"]

1. e4 {[%clk 0:03:01.2]} 1... e5 {[%clk 0:03:00.2]} 2. Nf3 {[%clk 0:03:02]} 2...
Nc6 {[%clk 0:03:01.7]} 3. Nc3 {[%clk 0:03:03.7]} 3... Nf6 {[%clk 0:03:02]} 4.
Bb5 {[%clk 0:03:05.2]} 4... Bc5 {[%clk 0:02:56.8]} 5. d3 {[%clk 0:02:56.2]} 5...
Nd4 {[%clk 0:02:53]} 6. Bc4 {[%clk 0:02:53.4]} 6... d6 {[%clk 0:02:43.5]} 7. Na4
{[%clk 0:02:54.3]} 7... Bg4 {[%clk 0:02:09.5]} 8. c3 {[%clk 0:02:35.9]} 8...
Nxf3+ {[%clk 0:01:56.6]} 9. gxf3 {[%clk 0:02:36.9]} 9... Bh5 {[%clk 0:01:54.2]}
10. Rg1 {[%clk 0:02:32.5]} 10... Bb6 {[%clk 0:01:49.5]} 11. Nxb6 {[%clk
0:02:25.8]} 11... axb6 {[%clk 0:01:49.9]} 12. Be3 {[%clk 0:02:09.5]} 12... c6
{[%clk 0:01:44]} 13. Bb3 {[%clk 0:02:04.6]} 13... b5 {[%clk 0:01:44.6]} 14. d4
{[%clk 0:02:01.2]} 14... Qe7 {[%clk 0:01:25.8]} 15. Bc2 {[%clk 0:01:54.2]} 15...
Qe6 {[%clk 0:01:06]} 16. a3 {[%clk 0:01:34.3]} 16... Qh3 {[%clk 0:00:58]} 17.
dxe5 {[%clk 0:01:28.2]} 17... dxe5 {[%clk 0:00:56.9]} 18. Qd6 {[%clk 0:01:23.3]}
18... Nd7 {[%clk 0:00:17.1]} 19. O-O-O {[%clk 0:01:19.2]} 19... O-O-O {[%clk
0:00:16.2]} 20. Rxg7 {[%clk 0:01:06.3]} 20... Bg6 {[%clk 0:00:16.4]} 21. Bg5
{[%clk 0:01:05.5]} 21... Rde8 {[%clk 0:00:16.5]} 22. f4 {[%clk 0:00:55]} 22...
Qe6 {[%clk 0:00:17]} 23. f5 {[%clk 0:00:54.7]} 23... Qxd6 {[%clk 0:00:17.4]} 24.
Rxd6 {[%clk 0:00:56.6]} 24... Bh5 {[%clk 0:00:18.6]} 25. Rh6 {[%clk 0:00:54.7]}
25... Bf3 {[%clk 0:00:18.9]} 26. Rxf7 {[%clk 0:00:52.2]} 26... Nc5 {[%clk
0:00:19.8]} 27. Rhxh7 {[%clk 0:00:50.2]} 27... Rxh7 {[%clk 0:00:21]} 28. Rxh7
{[%clk 0:00:52.1]} 28... Rg8 {[%clk 0:00:22.3]} 29. h4 {[%clk 0:00:52.5]} 29...
Nxe4 {[%clk 0:00:23.3]} 30. f6 {[%clk 0:00:52.9]} 30... Nxg5 {[%clk 0:00:17.6]}
31. hxg5 {[%clk 0:00:54]} 31... Bd5 {[%clk 0:00:18.5]} 32. g6 {[%clk 0:00:53.6]}
1-0

[Event "*** Titled Tuesday Blitz"]
[Site "Chess.com"]
[Date "2018.06.05"]
[Round "1"]
[White "dawtonlms"]
[Black "mishanick"]
[Result "0-1"]
[WhiteElo "2418"]
[BlackElo "2837"]
[TimeControl "180+2"]
[EndTime "13:07:29 PDT"]
[Termination "mishanick won on time"]

1. e4 {[%clk 0:02:59.3]} 1... c5 {[%clk 0:03:00.5]} 2. Nf3 {[%clk 0:02:58.5]}
2... d6 {[%clk 0:03:01.7]} 3. Bb5+ {[%clk 0:02:56.6]} 3... Nd7 {[%clk
0:03:02.3]} 4. O-O {[%clk 0:02:55.3]} 4... a6 {[%clk 0:03:03.4]} 5. Bd3 {[%clk
0:02:55.1]} 5... Ngf6 {[%clk 0:03:04.4]} 6. Re1 {[%clk 0:02:51.1]} 6... e6
{[%clk 0:03:05.3]} 7. c3 {[%clk 0:02:50]} 7... b5 {[%clk 0:03:06.3]} 8. Bc2
{[%clk 0:02:51.1]} 8... c4 {[%clk 0:03:07.3]} 9. d4 {[%clk 0:02:48.6]} 9... cxd3
{[%clk 0:03:06.7]} 10. Qxd3 {[%clk 0:02:49.5]} 10... Nc5 {[%clk 0:03:06.7]} 11.
Qe2 {[%clk 0:02:49.5]} 11... Bb7 {[%clk 0:03:07.2]} 12. Nbd2 {[%clk 0:02:42.5]}
12... Be7 {[%clk 0:03:03.3]} 13. Nd4 {[%clk 0:02:22.9]} 13... O-O {[%clk
0:02:53.4]} 14. b4 {[%clk 0:01:42.4]} 14... Na4 {[%clk 0:02:43.5]} 15. Bxa4
{[%clk 0:01:42.6]} 15... bxa4 {[%clk 0:02:45.4]} 16. c4 {[%clk 0:01:39]} 16...
Qb6 {[%clk 0:02:42.1]} 17. Nc2 {[%clk 0:01:27.8]} 17... a5 {[%clk 0:02:41.6]}
18. a3 {[%clk 0:01:26.9]} 18... Rfc8 {[%clk 0:02:37.9]} 19. Bb2 {[%clk
0:01:25.7]} 19... axb4 {[%clk 0:02:38]} 20. axb4 {[%clk 0:01:26.3]} 20... Nd7
{[%clk 0:02:35.5]} 21. Bd4 {[%clk 0:01:23.1]} 21... Qc7 {[%clk 0:02:34.1]} 22.
f3 {[%clk 0:00:56]} 22... Ba6 {[%clk 0:02:21.4]} 23. Ne3 {[%clk 0:00:54.8]}
23... Bg5 {[%clk 0:02:12.8]} 24. Rec1 {[%clk 0:00:52]} 24... Nb6 {[%clk
0:02:05.7]} 25. b5 {[%clk 0:00:43.3]} 25... Bb7 {[%clk 0:02:06.3]} 26. g3 {[%clk
0:00:41.3]} 26... Nd7 {[%clk 0:02:05.8]} 27. h4 {[%clk 0:00:40]} 27... Be7
{[%clk 0:02:05.7]} 28. h5 {[%clk 0:00:33.7]} 28... h6 {[%clk 0:02:02.2]} 29. Ng4
{[%clk 0:00:30.6]} 29... d5 {[%clk 0:01:41.9]} 30. f4 {[%clk 0:00:16.9]} 30...
dxe4 {[%clk 0:01:38.3]} 31. Nxe4 {[%clk 0:00:17.7]} 31... Nc5 {[%clk 0:01:31.9]}
32. Ngf2 {[%clk 0:00:17.7]} 32... Rd8 {[%clk 0:01:26.9]} 33. Be5 {[%clk
0:00:18.6]} 33... Qb6 {[%clk 0:01:27.1]} 34. Nxc5 {[%clk 0:00:19.3]} 34... Bxc5
{[%clk 0:01:27.6]} 35. Rd1 {[%clk 0:00:19.4]} 35... a3 {[%clk 0:01:28]} 36. Bc3
{[%clk 0:00:14.5]} 36... Rac8 {[%clk 0:01:21.8]} 37. Qe1 {[%clk 0:00:10.6]}
37... Ba8 {[%clk 0:01:19.8]} 38. Ba5 {[%clk 0:00:10.8]} 38... Qb7 {[%clk
0:01:20.3]} 0-1

[Event "*** Titled Tuesday Blitz"]
[Site "Chess.com"]
[Date "2018.06.05"]
[Round "1"]
[White "Andreikka"]
[Black "PrinceMurad09"]
[Result "1-0"]
[WhiteElo "2788"]
[BlackElo "2405"]
[TimeControl "180+2"]
[EndTime "13:07:35 PDT"]
[Termination "Andreikka won by checkmate"]

1. d4 {[%clk 0:02:58.9]} 1... Nf6 {[%clk 0:03:00.2]} 2. Nf3 {[%clk 0:02:58.4]}
2... e6 {[%clk 0:03:00.8]} 3. Bf4 {[%clk 0:02:57.6]} 3... b6 {[%clk 0:02:59.1]}
4. e3 {[%clk 0:02:57.5]} 4... Bb7 {[%clk 0:03:00.2]} 5. h3 {[%clk 0:02:58.5]}
5... Be7 {[%clk 0:03:00.6]} 6. Be2 {[%clk 0:02:59.1]} 6... O-O {[%clk
0:03:01.3]} 7. O-O {[%clk 0:03:00.1]} 7... c5 {[%clk 0:03:01.9]} 8. c4 {[%clk
0:02:59.3]} 8... cxd4 {[%clk 0:03:02.4]} 9. Nxd4 {[%clk 0:02:58.7]} 9... d5
{[%clk 0:03:02.2]} 10. Nc3 {[%clk 0:02:57.9]} 10... dxc4 {[%clk 0:03:01.5]} 11.
Bxc4 {[%clk 0:02:58.2]} 11... Nc6 {[%clk 0:03:01.6]} 12. Nxc6 {[%clk 0:02:58.7]}
12... Bxc6 {[%clk 0:03:02.3]} 13. Qe2 {[%clk 0:03:00.2]} 13... Qc8 {[%clk
0:02:59.8]} 14. Rac1 {[%clk 0:02:57.6]} 14... Qb7 {[%clk 0:03:00.5]} 15. Ba6
{[%clk 0:02:58.4]} 15... Qd7 {[%clk 0:02:50]} 16. Rfd1 {[%clk 0:02:57.7]} 16...
Qe8 {[%clk 0:02:51.3]} 17. Nb5 {[%clk 0:02:04.9]} 17... Nd5 {[%clk 0:02:48.4]}
18. Bg3 {[%clk 0:02:06]} 18... Rd8 {[%clk 0:02:27.7]} 19. a3 {[%clk 0:02:01]}
19... Bg5 {[%clk 0:02:02.8]} 20. Bd6 {[%clk 0:01:37.9]} 20... Be7 {[%clk
0:01:52.5]} 21. Bxe7 {[%clk 0:01:31.3]} 21... Bxb5 {[%clk 0:01:49.1]} 22. Bxb5
{[%clk 0:01:22.7]} 22... Qxe7 {[%clk 0:01:50]} 23. g3 {[%clk 0:01:23.2]} 23...
e5 {[%clk 0:01:47.1]} 24. Bc4 {[%clk 0:01:21.5]} 24... Nf6 {[%clk 0:01:46.5]}
25. Qf3 {[%clk 0:01:19.6]} 25... h6 {[%clk 0:01:44.1]} 26. Bb3 {[%clk
0:01:13.3]} 26... e4 {[%clk 0:01:41.3]} 27. Qf5 {[%clk 0:01:13.3]} 27... Rxd1+
{[%clk 0:01:41.5]} 28. Rxd1 {[%clk 0:01:14]} 28... Rd8 {[%clk 0:01:42.3]} 29.
Rc1 {[%clk 0:01:15.5]} 29... g6 {[%clk 0:01:38.9]} 30. Qxg6+ {[%clk 0:01:15.8]}
30... Kf8 {[%clk 0:01:36.5]} 31. Qxh6+ {[%clk 0:01:15.9]} 31... Kg8 {[%clk
0:01:37.9]} 32. Qg5+ {[%clk 0:01:16.7]} 32... Kf8 {[%clk 0:01:39]} 33. Kg2
{[%clk 0:01:12.4]} 33... Nd5 {[%clk 0:01:39]} 34. Qh6+ {[%clk 0:01:11.9]} 34...
Kg8 {[%clk 0:01:40.3]} 35. Bxd5 {[%clk 0:01:07.5]} 35... Rxd5 {[%clk 0:01:41.3]}
36. Rc8+ {[%clk 0:00:44.2]} 36... Rd8 {[%clk 0:01:41.8]} 37. Rc6 {[%clk
0:00:45.5]} 37... Rd5 {[%clk 0:01:33.8]} 38. Qf4 {[%clk 0:00:41.8]} 38... Rc5
{[%clk 0:01:33]} 39. Rh6 {[%clk 0:00:35.7]} 39... Qg5 {[%clk 0:01:25.7]} 40.
Qb8+ {[%clk 0:00:31.3]} 40... Kg7 {[%clk 0:01:19.4]} 41. Qh8# {[%clk 0:00:31.8]}
1-0